[Event "Early-Titled-Tuesday-Blitz-October-03-2023"]
[Site "Chess.com"]
[Date "2023.10.03"]
[Round "3"]
[White "AlexPapasimakopoulos"]
[Black "GroovyKettle"]
[Result "1-0"]
[WhiteElo "2717"]
[BlackElo "2959"]
[TimeControl "180+1"]
[EndTime "8:30:01 PDT"]
[Termination "AlexPapasimakopoulos won by resignation"]

1. Nf3 {[%clk 0:03:00.9]} 1... Nf6 {[%clk 0:02:58.9]} 2. b3 {[%clk 0:03:00.2]}
2... g6 {[%clk 0:02:58.1]} 3. Bb2 {[%clk 0:03:00.5]} 3... Bg7 {[%clk 0:02:58.8]}
4. g3 {[%clk 0:03:01.1]} 4... O-O {[%clk 0:02:59.2]} 5. Bg2 {[%clk 0:03:01.4]}
5... b6 {[%clk 0:02:59.9]} 6. O-O {[%clk 0:03:01.1]} 6... c5 {[%clk 0:02:58.4]}
7. d4 {[%clk 0:02:57.2]} 7... Bb7 {[%clk 0:02:57.3]} 8. dxc5 {[%clk 0:02:57.4]}
8... bxc5 {[%clk 0:02:57.3]} 9. c4 {[%clk 0:02:58]} 9... d6 {[%clk 0:02:57.4]}
10. Nc3 {[%clk 0:02:55.1]} 10... Nc6 {[%clk 0:02:57.5]} 11. Qd2 {[%clk
0:02:54.6]} 11... Rb8 {[%clk 0:02:56.2]} 12. Rfe1 {[%clk 0:02:52.5]} 12... Qa5
{[%clk 0:02:53.2]} 13. Rad1 {[%clk 0:02:48.8]} 13... Rfd8 {[%clk 0:02:50.5]} 14.
h3 {[%clk 0:02:42.9]} 14... e6 {[%clk 0:02:31.7]} 15. Ng5 {[%clk 0:02:29.6]}
15... h6 {[%clk 0:02:23.1]} 16. Nge4 {[%clk 0:02:25.6]} 16... Nxe4 {[%clk
0:02:21.4]} 17. Nxe4 {[%clk 0:02:23.2]} 17... Qxd2 {[%clk 0:02:17.9]} 18. Rxd2
{[%clk 0:02:24.1]} 18... Bxb2 {[%clk 0:02:12.8]} 19. Rxb2 {[%clk 0:02:25]} 19...
f5 {[%clk 0:02:12.9]} 20. Nc3 {[%clk 0:02:24.6]} 20... Nd4 {[%clk 0:02:10.2]}
21. Rd1 {[%clk 0:02:21.2]} 21... Kf7 {[%clk 0:02:05.3]} 22. Rbd2 {[%clk
0:02:18.9]} 22... Ke7 {[%clk 0:02:02.8]} 23. Kf1 {[%clk 0:02:14.7]} 23... a6
{[%clk 0:01:59.8]} 24. Bxb7 {[%clk 0:02:06.9]} 24... Rxb7 {[%clk 0:02:00]} 25.
Kg2 {[%clk 0:02:07.5]} 25... g5 {[%clk 0:01:54.2]} 26. e3 {[%clk 0:02:07.3]}
26... Nc6 {[%clk 0:01:54.2]} 27. f4 {[%clk 0:01:57]} 27... Rbd7 {[%clk
0:01:49.8]} 28. Kf3 {[%clk 0:01:54.7]} 28... Rg8 {[%clk 0:01:13.5]} 29. Na4
{[%clk 0:01:50.9]} 29... Rdd8 {[%clk 0:01:12.3]} 30. Nc3 {[%clk 0:01:42.5]}
30... h5 {[%clk 0:01:10]} 31. Ne2 {[%clk 0:01:33]} 31... h4 {[%clk 0:01:05.8]}
32. gxh4 {[%clk 0:01:29.2]} 32... gxh4 {[%clk 0:00:49.2]} 33. Rg1 {[%clk
0:01:28.5]} 33... Rxg1 {[%clk 0:00:48.8]} 34. Nxg1 {[%clk 0:01:29.4]} 34... Rg8
{[%clk 0:00:49.1]} 35. Ne2 {[%clk 0:01:30]} 35... Nb4 {[%clk 0:00:37.8]} 36. Kf2
{[%clk 0:01:20.9]} 36... a5 {[%clk 0:00:37.3]} 37. Kf3 {[%clk 0:01:10.5]} 37...
Nc6 {[%clk 0:00:36.8]} 38. Kf2 {[%clk 0:01:10.1]} 38... Nb8 {[%clk 0:00:36.1]}
39. Rd1 {[%clk 0:01:08.3]} 39... a4 {[%clk 0:00:20.6]} 40. bxa4 {[%clk
0:00:56.7]} 40... Nc6 {[%clk 0:00:20.6]} 41. Rb1 {[%clk 0:00:54.9]} 41... Ra8
{[%clk 0:00:18.7]} 42. Rb7+ {[%clk 0:00:54.9]} 42... Kf6 {[%clk 0:00:18.5]} 43.
Rb6 {[%clk 0:00:55.2]} 43... Na5 {[%clk 0:00:17.9]} 44. Rxd6 {[%clk 0:00:47.6]}
44... Nxc4 {[%clk 0:00:18.1]} 45. Rc6 {[%clk 0:00:47.7]} 45... Rxa4 {[%clk
0:00:15.8]} 46. Rxc5 {[%clk 0:00:47]} 46... Nd2 {[%clk 0:00:15.8]} 47. Nc3
{[%clk 0:00:44.6]} 47... Rb4 {[%clk 0:00:09.4]} 48. Ke2 {[%clk 0:00:43.9]} 48...
Nc4 {[%clk 0:00:06.7]} 49. Kd3 {[%clk 0:00:44.1]} 49... Nb2+ {[%clk 0:00:06.6]}
50. Kc2 {[%clk 0:00:42.8]} 50... Nc4 {[%clk 0:00:07.2]} 51. Kd3 {[%clk
0:00:25.5]} 51... Nb2+ {[%clk 0:00:07.4]} 52. Ke2 {[%clk 0:00:25.5]} 52... Nc4
{[%clk 0:00:07.3]} 53. Rb5 {[%clk 0:00:24.9]} 53... Rxb5 {[%clk 0:00:05.6]} 54.
Nxb5 {[%clk 0:00:25.8]} 54... e5 {[%clk 0:00:06.3]} 55. a4 {[%clk 0:00:21.8]}
55... Na5 {[%clk 0:00:05.5]} 56. Kd3 {[%clk 0:00:21.4]} 56... Ke6 {[%clk
0:00:05.7]} 57. Na3 {[%clk 0:00:20.5]} 57... Kd5 {[%clk 0:00:05.8]} 58. Nb5
{[%clk 0:00:20.5]} 58... exf4 {[%clk 0:00:05.3]} 59. exf4 {[%clk 0:00:20.7]}
59... Nc6 {[%clk 0:00:05.6]} 60. Nc7+ {[%clk 0:00:18.1]} 60... Kd6 {[%clk
0:00:04.8]} 61. Ne8+ {[%clk 0:00:17.9]} 61... Kd5 {[%clk 0:00:04.6]} 62. Ng7
{[%clk 0:00:17.7]} 62... Nb4+ {[%clk 0:00:05.2]} 63. Ke3 {[%clk 0:00:17.5]}
63... Nc2+ {[%clk 0:00:04.3]} 64. Kd2 {[%clk 0:00:16.4]} 64... Nb4 {[%clk
0:00:02.8]} 65. Nxf5 {[%clk 0:00:16]} 65... Ke4 {[%clk 0:00:03.5]} 66. Nxh4
{[%clk 0:00:16.4]} 66... Kxf4 {[%clk 0:00:04.3]} 67. Ng2+ {[%clk 0:00:16.5]}
67... Kg3 {[%clk 0:00:04.9]} 68. h4 {[%clk 0:00:15.7]} 68... Kxg2 {[%clk
0:00:04]} 69. h5 {[%clk 0:00:15.6]} 69... Kf3 {[%clk 0:00:03.5]} 70. h6 {[%clk
0:00:15.8]} 1-0

[Event "Early-Titled-Tuesday-Blitz-October-03-2023"]
[Site "Chess.com"]
[Date "2023.10.03"]
[Round "3"]
[White "Kaua18"]
[Black "biostatistician"]
[Result "0-1"]
[WhiteElo "2439"]
[BlackElo "2634"]
[TimeControl "180+1"]
[EndTime "8:30:02 PDT"]
[Termination "biostatistician won on time"]

1. e4 {[%clk 0:02:58.8]} 1... e5 {[%clk 0:02:59.9]} 2. Nf3 {[%clk 0:02:57.2]}
2... Nc6 {[%clk 0:03:00.1]} 3. Bb5 {[%clk 0:02:55.1]} 3... Nf6 {[%clk 0:03:00]}
4. d3 {[%clk 0:02:53.8]} 4... d6 {[%clk 0:02:58.7]} 5. O-O {[%clk 0:02:53.9]}
5... Bd7 {[%clk 0:02:58.8]} 6. c4 {[%clk 0:02:51]} 6... g6 {[%clk 0:02:58.4]} 7.
Nc3 {[%clk 0:02:51]} 7... Bg7 {[%clk 0:02:58.6]} 8. h3 {[%clk 0:02:49.1]} 8...
O-O {[%clk 0:02:58.6]} 9. Be3 {[%clk 0:02:47.8]} 9... Nh5 {[%clk 0:02:58.1]} 10.
d4 {[%clk 0:02:41.7]} 10... Nxd4 {[%clk 0:02:53.6]} 11. Nxd4 {[%clk 0:02:41.6]}
11... exd4 {[%clk 0:02:53.1]} 12. Bxd4 {[%clk 0:02:41.5]} 12... Bxb5 {[%clk
0:02:50.9]} 13. Nxb5 {[%clk 0:02:40.1]} 13... a6 {[%clk 0:02:46.4]} 14. Nc3
{[%clk 0:02:35]} 14... Qg5 {[%clk 0:02:28.5]} 15. Bxg7 {[%clk 0:02:26.3]} 15...
Kxg7 {[%clk 0:02:29.4]} 16. Kh2 {[%clk 0:02:23.7]} 16... Rae8 {[%clk 0:02:24.7]}
17. Qd4+ {[%clk 0:02:22.9]} 17... Qe5+ {[%clk 0:02:18.8]} 18. Qxe5+ {[%clk
0:02:21.5]} 18... dxe5 {[%clk 0:02:14.5]} 19. Rfd1 {[%clk 0:02:20.5]} 19... Rd8
{[%clk 0:02:14]} 20. f3 {[%clk 0:02:13.6]} 20... f5 {[%clk 0:02:09.2]} 21. Kg1
{[%clk 0:02:07.6]} 21... Nf6 {[%clk 0:02:02.8]} 22. exf5 {[%clk 0:01:57.9]}
22... gxf5 {[%clk 0:02:02.7]} 23. Kf2 {[%clk 0:01:58.5]} 23... h5 {[%clk
0:02:02.2]} 24. h4 {[%clk 0:01:46.4]} 24... Kf7 {[%clk 0:01:59.2]} 25. g3 {[%clk
0:01:44.9]} 25... Ke6 {[%clk 0:01:58.9]} 26. Re1 {[%clk 0:01:41.1]} 26... Rd4
{[%clk 0:01:52.6]} 27. b3 {[%clk 0:01:31.9]} 27... Rfd8 {[%clk 0:01:51.8]} 28.
Re2 {[%clk 0:01:32.2]} 28... Rd2 {[%clk 0:01:49.1]} 29. Re1 {[%clk 0:01:31.8]}
29... e4 {[%clk 0:01:31.8]} 30. fxe4 {[%clk 0:01:23.3]} 30... fxe4 {[%clk
0:01:12.7]} 31. Nd5 {[%clk 0:01:03.1]} 31... Rxe2+ {[%clk 0:00:29.1]} 32. Rxe2
{[%clk 0:01:02.3]} 32... Ng4+ {[%clk 0:00:28.4]} 33. Kg2 {[%clk 0:00:55.5]}
33... Ke5 {[%clk 0:00:28.5]} 34. Nxc7 {[%clk 0:00:38.7]} 34... e3 {[%clk
0:00:28.2]} 35. Nd5 {[%clk 0:00:38.1]} 35... Ke4 {[%clk 0:00:27.1]} 36. Kf1
{[%clk 0:00:30.4]} 36... Kf3 {[%clk 0:00:21.5]} 37. Ke1 {[%clk 0:00:18.1]} 37...
Re8 {[%clk 0:00:19.9]} 38. Nf4 {[%clk 0:00:14.9]} 38... Re5 {[%clk 0:00:17.4]}
39. Ng6 {[%clk 0:00:11.2]} 39... Ra5 {[%clk 0:00:14.7]} 40. Nf4 {[%clk
0:00:10.6]} 40... Kxg3 {[%clk 0:00:13.8]} 41. Nd5 {[%clk 0:00:06.3]} 41... Kxh4
{[%clk 0:00:12.3]} 42. Nxe3 {[%clk 0:00:06.4]} 42... Nxe3 {[%clk 0:00:12.4]} 43.
Rxe3 {[%clk 0:00:07.3]} 43... Rxa2 {[%clk 0:00:13.3]} 44. Kf1 {[%clk 0:00:07.3]}
44... Kg4 {[%clk 0:00:13]} 45. Kg1 {[%clk 0:00:07.4]} 45... h4 {[%clk
0:00:13.1]} 46. Re7 {[%clk 0:00:07.6]} 46... b5 {[%clk 0:00:11.1]} 47. cxb5
{[%clk 0:00:06.3]} 47... axb5 {[%clk 0:00:12]} 48. Re5 {[%clk 0:00:06.7]} 48...
b4 {[%clk 0:00:10.5]} 49. Rb5 {[%clk 0:00:05.1]} 49... Kg3 {[%clk 0:00:10.2]}
50. Rg5+ {[%clk 0:00:05.5]} 50... Kf3 {[%clk 0:00:07.6]} 51. Rb5 {[%clk
0:00:05.3]} 51... Rb2 {[%clk 0:00:07.9]} 52. Rxb4 {[%clk 0:00:05.3]} 52... Kg3
{[%clk 0:00:07.3]} 53. Kf1 {[%clk 0:00:03.6]} 53... h3 {[%clk 0:00:07.5]} 54.
Rb8 {[%clk 0:00:03.7]} 54... Rb1+ {[%clk 0:00:07.5]} 55. Ke2 {[%clk 0:00:04.1]}
55... h2 {[%clk 0:00:08.4]} 56. Rg8+ {[%clk 0:00:04.4]} 56... Kf4 {[%clk
0:00:08.9]} 57. Rf8+ {[%clk 0:00:04.3]} 57... Ke5 {[%clk 0:00:09.2]} 58. Re8+
{[%clk 0:00:04.6]} 58... Kd6 {[%clk 0:00:09.6]} 59. Rd8+ {[%clk 0:00:05.1]}
59... Kc7 {[%clk 0:00:10.1]} 0-1

[Event "Early-Titled-Tuesday-Blitz-October-03-2023"]
[Site "Chess.com"]
[Date "2023.10.03"]
[Round "3"]
[White "Macron20hTF1"]
[Black "N4700000"]
[Result "1-0"]
[WhiteElo "2618"]
[BlackElo "2414"]
[TimeControl "180+1"]
[EndTime "8:30:02 PDT"]
[Termination "Macron20hTF1 won on time"]

1. Nf3 {[%clk 0:03:00.9]} 1... Nf6 {[%clk 0:02:57.9]} 2. c3 {[%clk 0:03:01]}
2... d5 {[%clk 0:02:49.3]} 3. d4 {[%clk 0:03:00]} 3... g6 {[%clk 0:02:42.8]} 4.
Bf4 {[%clk 0:02:53.9]} 4... Bg7 {[%clk 0:02:42.1]} 5. e3 {[%clk 0:02:54.5]} 5...
O-O {[%clk 0:02:41.7]} 6. Be2 {[%clk 0:02:55.2]} 6... b6 {[%clk 0:02:38]} 7. O-O
{[%clk 0:02:55.3]} 7... c5 {[%clk 0:02:38]} 8. Nbd2 {[%clk 0:02:52.9]} 8... Nc6
{[%clk 0:02:37]} 9. Ne5 {[%clk 0:02:53.4]} 9... Bb7 {[%clk 0:02:34.9]} 10. Nxc6
{[%clk 0:02:42.4]} 10... Bxc6 {[%clk 0:02:34.4]} 11. Be5 {[%clk 0:02:43.3]}
11... Bh6 {[%clk 0:02:03.4]} 12. b4 {[%clk 0:02:33]} 12... Nd7 {[%clk
0:01:56.9]} 13. Bg3 {[%clk 0:02:29]} 13... Bg7 {[%clk 0:01:50]} 14. a4 {[%clk
0:02:18.5]} 14... a5 {[%clk 0:01:38.8]} 15. bxc5 {[%clk 0:02:12.9]} 15... bxc5
{[%clk 0:01:39.7]} 16. Bb5 {[%clk 0:02:03.1]} 16... Qc8 {[%clk 0:01:22.1]} 17.
Rb1 {[%clk 0:01:57.4]} 17... e5 {[%clk 0:01:14.9]} 18. Nf3 {[%clk 0:01:22.3]}
18... e4 {[%clk 0:01:01.2]} 19. Nd2 {[%clk 0:01:21]} 19... c4 {[%clk 0:00:50.3]}
20. Bxc6 {[%clk 0:01:16.3]} 20... Qxc6 {[%clk 0:00:49.8]} 21. Rb5 {[%clk
0:01:17.2]} 21... Nb6 {[%clk 0:00:35.5]} 22. Qa1 {[%clk 0:01:04.9]} 22... Ra6
{[%clk 0:00:24.8]} 23. Rfb1 {[%clk 0:01:04.8]} 23... Re8 {[%clk 0:00:20.7]} 24.
h3 {[%clk 0:00:52.8]} 24... Bf8 {[%clk 0:00:20.2]} 25. Qa2 {[%clk 0:00:47.6]}
25... h5 {[%clk 0:00:19.2]} 26. Bf4 {[%clk 0:00:42.5]} 26... Bd6 {[%clk
0:00:19.1]} 27. Bxd6 {[%clk 0:00:38.9]} 27... Qxd6 {[%clk 0:00:20]} 28. Rc5
{[%clk 0:00:37.3]} 28... Qd7 {[%clk 0:00:18.3]} 29. Rbb5 {[%clk 0:00:37.3]}
29... Rb8 {[%clk 0:00:17]} 30. Rxa5 {[%clk 0:00:31.1]} 30... Rxa5 {[%clk
0:00:16.7]} 31. Rxa5 {[%clk 0:00:31.4]} 31... Nc8 {[%clk 0:00:14.5]} 32. Ra6
{[%clk 0:00:26.9]} 32... Qb7 {[%clk 0:00:14]} 33. Rf6 {[%clk 0:00:22.5]} 33...
Qb2 {[%clk 0:00:13]} 34. Qxb2 {[%clk 0:00:21.7]} 34... Rxb2 {[%clk 0:00:13.9]}
35. Nf1 {[%clk 0:00:22.1]} 35... Ra2 {[%clk 0:00:12.4]} 36. Rc6 {[%clk 0:00:21]}
36... Ne7 {[%clk 0:00:12.1]} 37. Rc7 {[%clk 0:00:21.6]} 37... Kf8 {[%clk
0:00:12.2]} 38. Ra7 {[%clk 0:00:19.8]} 38... Nc6 {[%clk 0:00:12]} 39. Ra8+
{[%clk 0:00:20.1]} 39... Ke7 {[%clk 0:00:11.7]} 40. g4 {[%clk 0:00:21]} 40... h4
{[%clk 0:00:11.2]} 41. g5 {[%clk 0:00:19.9]} 41... Ra3 {[%clk 0:00:09.8]} 42.
Ra6 {[%clk 0:00:10.5]} 42... Kd7 {[%clk 0:00:09.5]} 43. Nh2 {[%clk 0:00:10.3]}
43... Rxc3 {[%clk 0:00:09.5]} 44. Ng4 {[%clk 0:00:11]} 44... Rc1+ {[%clk
0:00:08.6]} 45. Kg2 {[%clk 0:00:11]} 45... Ra1 {[%clk 0:00:09.1]} 46. Nf6+
{[%clk 0:00:11]} 46... Kd6 {[%clk 0:00:09]} 47. Ne8+ {[%clk 0:00:11.4]} 47...
Kd7 {[%clk 0:00:08.3]} 48. Nf6+ {[%clk 0:00:11.9]} 48... Kd6 {[%clk 0:00:07.9]}
49. Ra8 {[%clk 0:00:08.4]} 49... c3 {[%clk 0:00:06.7]} 50. Ne8+ {[%clk
0:00:07.6]} 50... Kd7 {[%clk 0:00:06.6]} 51. Nf6+ {[%clk 0:00:07.7]} 51... Kc7
{[%clk 0:00:06.5]} 52. Nxd5+ {[%clk 0:00:07.8]} 52... Kd6 {[%clk 0:00:06.1]} 53.
Nxc3 {[%clk 0:00:07.8]} 53... Nb4 {[%clk 0:00:05.2]} 54. Nxe4+ {[%clk 0:00:08]}
54... Ke6 {[%clk 0:00:04.7]} 55. Nc5+ {[%clk 0:00:08.4]} 55... Kf5 {[%clk
0:00:04.7]} 56. Ra7 {[%clk 0:00:07.1]} 56... Kxg5 {[%clk 0:00:04.1]} 57. Rxf7
{[%clk 0:00:07.3]} 57... Nd5 {[%clk 0:00:03.8]} 58. Ne4+ {[%clk 0:00:07.4]}
58... Kh6 {[%clk 0:00:03.5]} 59. Kf3 {[%clk 0:00:05.8]} 59... Ra2 {[%clk
0:00:03.8]} 60. Ra7 {[%clk 0:00:05.3]} 60... Nb4 {[%clk 0:00:02.7]} 61. a5
{[%clk 0:00:05.1]} 61... Nd3 {[%clk 0:00:02.6]} 62. a6 {[%clk 0:00:05]} 62...
Ne1+ {[%clk 0:00:02.6]} 63. Kg4 {[%clk 0:00:05.6]} 63... Ra5 {[%clk 0:00:01.6]}
64. f4 {[%clk 0:00:05.5]} 1-0

[Event "Early-Titled-Tuesday-Blitz-October-03-2023"]
[Site "Chess.com"]
[Date "2023.10.03"]
[Round "3"]
[White "Korchmar_Vasiliy"]
[Black "Cambek64"]
[Result "1/2-1/2"]
[WhiteElo "2675"]
[BlackElo "2479"]
[TimeControl "180+1"]
[EndTime "8:30:05 PDT"]
[Termination "Game drawn by repetition"]

1. e4 {[%clk 0:03:00.9]} 1... e6 {[%clk 0:02:59]} 2. d4 {[%clk 0:03:00.9]} 2...
d5 {[%clk 0:02:59.3]} 3. e5 {[%clk 0:03:01.6]} 3... c5 {[%clk 0:02:59.9]} 4. c3
{[%clk 0:03:02.2]} 4... Nc6 {[%clk 0:03:00.3]} 5. Nf3 {[%clk 0:03:02.5]} 5...
Bd7 {[%clk 0:02:59.6]} 6. Be2 {[%clk 0:02:59.6]} 6... Nge7 {[%clk 0:02:58.7]} 7.
Na3 {[%clk 0:02:59.3]} 7... cxd4 {[%clk 0:02:57.5]} 8. cxd4 {[%clk 0:02:59.4]}
8... Nf5 {[%clk 0:02:57.5]} 9. Nc2 {[%clk 0:02:59.8]} 9... h5 {[%clk 0:02:57.9]}
10. O-O {[%clk 0:02:56.9]} 10... Qb6 {[%clk 0:02:56.9]} 11. Bd3 {[%clk 0:02:57]}
11... g6 {[%clk 0:02:56.7]} 12. Bxf5 {[%clk 0:02:51.1]} 12... exf5 {[%clk
0:02:50.7]} 13. b4 {[%clk 0:02:50.9]} 13... Be6 {[%clk 0:02:49.5]} 14. Rb1
{[%clk 0:02:47.4]} 14... Be7 {[%clk 0:02:45.2]} 15. Bg5 {[%clk 0:02:47.6]} 15...
Bxg5 {[%clk 0:02:37.3]} 16. Nxg5 {[%clk 0:02:48.5]} 16... Rc8 {[%clk 0:02:35.3]}
17. a4 {[%clk 0:02:42.1]} 17... O-O {[%clk 0:02:32.8]} 18. a5 {[%clk 0:02:36.8]}
18... Qd8 {[%clk 0:02:29.4]} 19. f4 {[%clk 0:02:33.6]} 19... a6 {[%clk
0:02:24.9]} 20. Ne1 {[%clk 0:02:17.4]} 20... Qe7 {[%clk 0:02:15.9]} 21. Qd2
{[%clk 0:02:12.9]} 21... Rc7 {[%clk 0:02:14.3]} 22. Ngf3 {[%clk 0:02:11.1]}
22... Na7 {[%clk 0:02:07.4]} 23. Nd3 {[%clk 0:02:10.3]} 23... Rc4 {[%clk
0:02:02.8]} 24. Nc5 {[%clk 0:02:08.4]} 24... Nb5 {[%clk 0:02:03]} 25. Rbc1
{[%clk 0:02:01.6]} 25... Rd8 {[%clk 0:01:58.9]} 26. Kh1 {[%clk 0:01:49.4]} 26...
Kg7 {[%clk 0:01:56.7]} 27. Qb2 {[%clk 0:01:41.4]} 27... Rc8 {[%clk 0:01:46.4]}
28. Rfd1 {[%clk 0:01:39.3]} 28... Rxc1 {[%clk 0:01:34.4]} 29. Rxc1 {[%clk
0:01:37.3]} 29... Rc6 {[%clk 0:01:33.2]} 30. Ng5 {[%clk 0:01:31.1]} 30... Kg8
{[%clk 0:01:30.5]} 31. h3 {[%clk 0:01:29.9]} 31... Qc7 {[%clk 0:01:24.7]} 32.
Qf2 {[%clk 0:01:22.3]} 32... b6 {[%clk 0:01:23.6]} 33. axb6 {[%clk 0:01:21.3]}
33... Qxb6 {[%clk 0:01:22.5]} 34. Ra1 {[%clk 0:01:15.2]} 34... Nc7 {[%clk
0:01:08.8]} 35. Qe1 {[%clk 0:01:04.3]} 35... Qb5 {[%clk 0:01:07.5]} 36. Rc1
{[%clk 0:00:39.6]} 36... Qb8 {[%clk 0:00:37.7]} 37. Kh2 {[%clk 0:00:39.7]} 37...
Qb5 {[%clk 0:00:36.6]} 38. Ra1 {[%clk 0:00:36.6]} 38... Qc4 {[%clk 0:00:35.5]}
39. Qd2 {[%clk 0:00:31.7]} 39... Nb5 {[%clk 0:00:33]} 40. Nf3 {[%clk 0:00:25.4]}
40... Nc7 {[%clk 0:00:31.2]} 41. Ra5 {[%clk 0:00:19.4]} 41... Rb6 {[%clk
0:00:30.4]} 42. Nd3 {[%clk 0:00:13.1]} 42... Nb5 {[%clk 0:00:27.5]} 43. Nc5
{[%clk 0:00:05.7]} 43... Nc3 {[%clk 0:00:27.3]} 44. Qc2 {[%clk 0:00:02]} 44...
Qxb4 {[%clk 0:00:15.7]} 45. Rxa6 {[%clk 0:00:02.4]} 45... Rxa6 {[%clk
0:00:14.9]} 46. Nxa6 {[%clk 0:00:03.3]} 46... Qc4 {[%clk 0:00:14.1]} 47. Nc5
{[%clk 0:00:03.6]} 47... Ne4 {[%clk 0:00:13.4]} 48. Qb2 {[%clk 0:00:02.9]} 48...
Qd3 {[%clk 0:00:10]} 49. Qb8+ {[%clk 0:00:02.6]} 49... Kg7 {[%clk 0:00:09.1]}
50. Nxe6+ {[%clk 0:00:03.1]} 50... fxe6 {[%clk 0:00:08.7]} 51. Qc7+ {[%clk
0:00:03.6]} 51... Kh6 {[%clk 0:00:07.8]} 52. Qd8 {[%clk 0:00:04.4]} 52... Kg7
{[%clk 0:00:06.6]} 53. Qe7+ {[%clk 0:00:04.7]} 53... Kh6 {[%clk 0:00:06.4]} 54.
Ng5 {[%clk 0:00:05.3]} 54... Qg3+ {[%clk 0:00:03]} 55. Kg1 {[%clk 0:00:03.8]}
55... Qe1+ {[%clk 0:00:03.4]} 56. Kh2 {[%clk 0:00:04.2]} 56... Qg3+ {[%clk
0:00:03.8]} 57. Kh1 {[%clk 0:00:04.9]} 57... Qe1+ {[%clk 0:00:03.9]} 58. Kh2
{[%clk 0:00:05.2]} 58... Qg3+ {[%clk 0:00:04.2]} 1/2-1/2

[Event "Early-Titled-Tuesday-Blitz-October-03-2023"]
[Site "Chess.com"]
[Date "2023.10.03"]
[Round "3"]
[White "MidnightFox"]
[Black "AnaKuchava"]
[Result "1-0"]
[WhiteElo "2487"]
[BlackElo "2249"]
[TimeControl "180+1"]
[EndTime "8:30:14 PDT"]
[Termination "MidnightFox won on time"]

1. d4 {[%clk 0:03:00.9]} 1... d5 {[%clk 0:02:49.5]} 2. c4 {[%clk 0:03:00.8]}
2... e6 {[%clk 0:02:49.7]} 3. Nf3 {[%clk 0:03:00.6]} 3... Nf6 {[%clk 0:02:49.7]}
4. g3 {[%clk 0:03:01]} 4... Bb4+ {[%clk 0:02:46.9]} 5. Nbd2 {[%clk 0:03:00]}
5... O-O {[%clk 0:02:46.2]} 6. Qc2 {[%clk 0:02:59.1]} 6... c6 {[%clk 0:02:25.3]}
7. Bg2 {[%clk 0:02:59.2]} 7... b6 {[%clk 0:02:24.4]} 8. O-O {[%clk 0:02:58.4]}
8... Bb7 {[%clk 0:02:11.6]} 9. b3 {[%clk 0:02:57.4]} 9... Nbd7 {[%clk
0:02:05.3]} 10. Bb2 {[%clk 0:02:57]} 10... Rc8 {[%clk 0:02:00.3]} 11. e4 {[%clk
0:02:56.4]} 11... dxe4 {[%clk 0:01:39.9]} 12. Nxe4 {[%clk 0:02:57.3]} 12... Nxe4
{[%clk 0:01:39.2]} 13. Qxe4 {[%clk 0:02:56.6]} 13... Nf6 {[%clk 0:01:38.9]} 14.
Qc2 {[%clk 0:02:52.3]} 14... Be7 {[%clk 0:01:28]} 15. Rad1 {[%clk 0:02:50.6]}
15... Qc7 {[%clk 0:01:26.2]} 16. Rfe1 {[%clk 0:02:50.2]} 16... c5 {[%clk
0:01:25.1]} 17. d5 {[%clk 0:02:47.6]} 17... exd5 {[%clk 0:01:22.6]} 18. Be5
{[%clk 0:02:46.2]} 18... Qc6 {[%clk 0:00:36.8]} 19. Ng5 {[%clk 0:02:41.3]} 19...
g6 {[%clk 0:00:27.2]} 20. cxd5 {[%clk 0:02:19.2]} 20... Qd7 {[%clk 0:00:20.1]}
21. d6 {[%clk 0:02:05.9]} 21... Bd8 {[%clk 0:00:19.1]} 22. Bxb7 {[%clk 0:01:31]}
22... Qxb7 {[%clk 0:00:18.7]} 23. Ne4 {[%clk 0:01:04.3]} 23... Nxe4 {[%clk
0:00:17.4]} 24. Qxe4 {[%clk 0:00:54.7]} 24... Qxe4 {[%clk 0:00:16.8]} 25. Rxe4
{[%clk 0:00:55.6]} 25... Rc6 {[%clk 0:00:16]} 26. Kg2 {[%clk 0:00:36.9]} 26...
b5 {[%clk 0:00:15.9]} 27. Kf3 {[%clk 0:00:28]} 27... f6 {[%clk 0:00:16.2]} 28.
Bc3 {[%clk 0:00:22.5]} 28... Kf7 {[%clk 0:00:15.9]} 29. a4 {[%clk 0:00:17.2]}
29... a6 {[%clk 0:00:15.6]} 30. axb5 {[%clk 0:00:16.3]} 30... axb5 {[%clk
0:00:16.5]} 31. Re2 {[%clk 0:00:15.8]} 31... Bb6 {[%clk 0:00:16.6]} 32. Ra2
{[%clk 0:00:14.5]} 32... Rd8 {[%clk 0:00:16]} 33. d7 {[%clk 0:00:11.1]} 33... b4
{[%clk 0:00:12.5]} 34. Ba1 {[%clk 0:00:09.7]} 34... c4 {[%clk 0:00:11.6]} 35.
bxc4 {[%clk 0:00:09.8]} 35... Rxc4 {[%clk 0:00:12.5]} 36. Rb2 {[%clk 0:00:09.9]}
36... Bd4 {[%clk 0:00:10.4]} 37. Rb3 {[%clk 0:00:08.9]} 37... Bxa1 {[%clk
0:00:10.9]} 38. Rxa1 {[%clk 0:00:09.7]} 38... Rxd7 {[%clk 0:00:11.5]} 39. Rab1
{[%clk 0:00:10.3]} 39... Rb7 {[%clk 0:00:10.8]} 40. Kg2 {[%clk 0:00:10.8]} 40...
f5 {[%clk 0:00:10.1]} 41. R1b2 {[%clk 0:00:11.2]} 41... Kf6 {[%clk 0:00:08.8]}
42. h4 {[%clk 0:00:11.8]} 42... Rb6 {[%clk 0:00:09.1]} 43. Rb1 {[%clk
0:00:12.3]} 43... f4 {[%clk 0:00:08.9]} 44. R1b2 {[%clk 0:00:11.7]} 44... fxg3
{[%clk 0:00:07.9]} 45. fxg3 {[%clk 0:00:12.6]} 45... Kf5 {[%clk 0:00:07.8]} 46.
Rf2+ {[%clk 0:00:12.3]} 46... Kg4 {[%clk 0:00:07.6]} 47. Re2 {[%clk 0:00:11.4]}
47... Rd6 {[%clk 0:00:04.1]} 48. Rbe3 {[%clk 0:00:10.9]} 48... Rc3 {[%clk
0:00:02.9]} 49. Rxc3 {[%clk 0:00:09.6]} 49... bxc3 {[%clk 0:00:02.6]} 50. Re4+
{[%clk 0:00:10.2]} 50... Kf5 {[%clk 0:00:02.8]} 51. Rc4 {[%clk 0:00:11.1]} 51...
Rd2+ {[%clk 0:00:02.9]} 52. Kf3 {[%clk 0:00:11.6]} 52... c2 {[%clk 0:00:03.8]}
53. g4+ {[%clk 0:00:11.4]} 53... Kf6 {[%clk 0:00:03.7]} 54. g5+ {[%clk
0:00:11.5]} 54... Kf5 {[%clk 0:00:03.7]} 55. Rc5+ {[%clk 0:00:12.2]} 55... Ke6
{[%clk 0:00:03.9]} 56. Ke3 {[%clk 0:00:12.3]} 56... Rh2 {[%clk 0:00:03.6]} 57.
Kd3 {[%clk 0:00:12.5]} 57... Rxh4 {[%clk 0:00:03.6]} 58. Kxc2 {[%clk 0:00:12.8]}
58... Rg4 {[%clk 0:00:03.6]} 59. Kd3 {[%clk 0:00:13]} 59... Rf4 {[%clk
0:00:03.8]} 60. Ke3 {[%clk 0:00:12.8]} 60... Rf5 {[%clk 0:00:04.2]} 61. Rc7
{[%clk 0:00:13.4]} 61... Rxg5 {[%clk 0:00:03.2]} 62. Rxh7 {[%clk 0:00:13.7]}
62... Rf5 {[%clk 0:00:03.9]} 63. Ke4 {[%clk 0:00:13.9]} 63... Kf6 {[%clk
0:00:04.3]} 64. Rh1 {[%clk 0:00:13.7]} 64... Rf2 {[%clk 0:00:03.9]} 65. Rg1
{[%clk 0:00:13.3]} 65... g5 {[%clk 0:00:04]} 66. Ke3 {[%clk 0:00:13]} 66... Rf5
{[%clk 0:00:04.4]} 67. Ke4 {[%clk 0:00:13.3]} 67... Rf4+ {[%clk 0:00:03.5]} 68.
Ke3 {[%clk 0:00:13.8]} 68... Kf5 {[%clk 0:00:03.9]} 69. Rg2 {[%clk 0:00:13.8]}
69... g4 {[%clk 0:00:03.3]} 70. Ra2 {[%clk 0:00:13.1]} 70... Rf3+ {[%clk
0:00:02.6]} 71. Ke2 {[%clk 0:00:13]} 71... Rb3 {[%clk 0:00:02.1]} 72. Ra4 {[%clk
0:00:12.2]} 1-0